fUSD/lending_fUSD_20250513
["ID","MTS","AMOUNT","RATE_DAILY","PERIOD"]
[360886583,1747103450249,-400.0,0.00013741,2]
[360886584,1747103450259,-400.0,0.00013741,2]
[360886585,1747103450269,-400.74338201,0.00013741,2]
[360886586,1747103450278,-548.64,0.00013741,2]
[360886587,1747103450288,-350.16369658,0.00013741,2]
[360886588,1747103450297,-328.09138997,0.00013741,2]
[360886589,1747103450309,-71.90861003,0.00013741,2]
[360886590,1747103450318,-401.74846053,0.00013741,2]
[360886591,1747103450328,-215.249248,0.00013741,2]
[360886592,1747103450337,-119.59260537,0.00013741,2]
[360886593,1747103450350,-280.40739463,0.00013741,2]
[360886594,1747103450360,-400.0,0.00013741,2]
[360886595,1747103450369,-420.56813905,0.00013741,2]
[360886596,1747103450380,-516.94488723,0.00013741,2]
[360886597,1747103450391,-408.09046892,0.00013741,2]
[360886598,1747103450400,-400.0,0.00013741,2]
[360886599,1747103450409,-510.81,0.00013741,2]
[360886600,1747103450418,-248.58233392,0.00013741,2]
[360886601,1747103450427,-406.12093692,0.00013741,2]
[360886602,1747103450437,-400.0,0.00013741,2]
[360886603,1747103450450,-400.0,0.00013741,2]
[360886604,1747103450459,-420.1121822,0.00013741,2]
[360886605,1747103450470,-852.1,0.00013741,2]
[360886606,1747103450479,-400.0,0.00013741,2]
[360886607,1747103450490,-586.22796386,0.00013741,2]
[360886608,1747103450502,-73.11203614,0.00013741,2]
[360886609,1747103450511,-401.11793764,0.00013741,2]
[360886610,1747103450521,-151.0,0.00013741,2]
[360886611,1747103450531,-171.452057,0.00013741,2]
[360886612,1747103450541,-151.0,0.00013741,2]
[360886613,1747103450550,-177.043135,0.00013741,2]
[360886614,1747103450560,-202.617755,0.00013741,2]
[360886615,1747103450569,-202.617755,0.00013741,2]
[360886616,1747103450578,-202.617755,0.00013741,2]
[360886617,1747103450587,-202.617755,0.00013741,2]
[360886618,1747103450596,-202.617755,0.00013741,2]
[360886619,1747103450606,-202.617755,0.00013741,2]
[360886620,1747103450616,-202.617755,0.00013741,2]
[360886621,1747103450625,-202.617755,0.00013741,2]
[360886622,1747103450636,-202.617755,0.00013741,2]
[360886623,1747103450646,-42.21503922,0.00013741,2]
[360886624,1747103450659,-160.40271578,0.00013741,2]
[360886625,1747103450668,-202.617755,0.00013741,2]
[360886626,1747103450679,-202.61775,0.00013741,2]
[360886627,1747103450688,-151.0,0.00013741,2]
[360886628,1747103450697,-151.0,0.00013741,2]
[360886629,1747103450708,-151.0,0.00013741,2]
[360886630,1747103450717,-151.0,0.00013741,2]
[360886631,1747103450727,-151.0,0.00013741,2]
[360886632,1747103450736,-151.0,0.00013741,2]
[360886633,1747103450746,-299.553207,0.00013741,2]
[360886634,1747103450755,-909.112774,0.00013741,2]
[360886635,1747103450765,-909.112774,0.00013741,2]
[360886636,1747103450775,-909.112774,0.00013741,2]
[360886637,1747103450785,-909.112774,0.00013741,2]
[360886638,1747103450794,-909.112774,0.00013741,2]
[360886639,1747103450804,-909.112774,0.00013741,2]
[360886640,1747103450813,-909.112774,0.00013741,2]
[360886641,1747103450824,-909.112774,0.00013741,2]
[360886642,1747103450833,-909.112774,0.00013741,2]
[360886643,1747103450842,-909.112774,0.00013741,2]
[360886644,1747103450852,-909.112774,0.00013741,2]
[360886645,1747103450862,-909.112771,0.00013741,2]
[360886646,1747103450871,-223.897093,0.00013741,2]
[360886647,1747103450881,-170.195493,0.00013741,2]
[360886648,1747103450891,-170.195493,0.00013741,2]
[360886649,1747103450900,-170.195493,0.00013741,2]
[360886650,1747103450909,-170.195493,0.00013741,2]
[360886651,1747103450919,-170.195493,0.00013741,2]
[360886652,1747103450929,-170.195493,0.00013741,2]
[360886653,1747103450939,-170.195493,0.00013741,2]
[360886654,1747103450949,-170.195496,0.00013741,2]
[360886655,1747103450958,-500.0,0.00013741,2]
[360886656,1747103450968,-151.0,0.00013741,2]
[360886657,1747103450978,-151.0,0.00013741,2]
[360886658,1747103450988,-151.0,0.00013741,2]
[360886659,1747103450999,-151.0,0.00013741,2]
[360886660,1747103451009,-247.292694,0.00013741,2]
[360886662,1747103451019,-151.0,0.00013741,2]
[360886663,1747103451028,-151.0,0.00013741,2]
[360886664,1747103451038,-500.0,0.00013741,2]
[360886665,1747103451047,-151.0,0.00013742,2]
[360886666,1747103451057,-151.0,0.00013742,2]
[360886667,1747103451068,-151.0,0.00013742,2]
[360886668,1747103451077,-151.0,0.00013742,2]
[360886669,1747103451088,-151.0,0.00013742,2]
[360886670,1747103451097,-151.0,0.00013742,2]
[360886671,1747103451107,-155.8604517,0.00013742,2]
[360886672,1747103451117,-152.853977,0.00013742,2]
[360886673,1747103451128,-1379.19376554,0.00013742,2]
[360886674,1747103451141,-2392.83982646,0.00013742,2]
[360886675,1747103451151,-1479.38891765,0.00013742,2]
[360886676,1747103451163,-2292.64467435,0.00013742,2]
[360886677,1747103451172,-3772.033592,0.00013742,2]
[360886678,1747103451181,-3772.033592,0.00013742,2]
[360886679,1747103451190,-152.529774,0.00013744,2]
[360886680,1747103451200,-191.982575,0.00013744,2]
[360886681,1747103451210,-426.21146225,0.00013745,2]
[360886682,1747103451219,-433.7477789,0.00013745,2]
[360886683,1747103451229,-3772.033592,0.00013745,2]
[360886684,1747103451239,-693.50317411,0.00013745,2]
[360886685,1747103451251,-443.999866,0.00013745,2]
[360886686,1747103451264,-2634.53055189,0.00013745,2]
[360886687,1747103451273,-155.608,0.00013746,2]
[360886688,1747103451283,-250.55611544,0.00013747,2]
[360886689,1747103452020,-416.04694604,0.00013738,2]
[360886690,1747103452030,-91.86305396,0.00013739,2]
[360886691,1747103452042,-1698.51694604,0.00013739,2]
[360886692,1747103452052,-151.0,0.0001374,2]
[360886693,1747103452062,-161.011857,0.0001374,2]
[360886694,1747103452073,-251.30388456,0.00013747,2]
[360886695,1747103452082,-1420.644,0.00013748,2]
[360886696,1747103452092,-1747.20382344,0.0001375,2]
[360886697,1747103452102,-500.0,0.00013753,2]
[360886698,1747103452112,-189.799,0.00013757,2]
[360886699,1747103452121,-150.11,0.00013757,2]
[360886700,1747103452130,-488.881,0.00013761,2]
[360886701,1747103452140,-798.0,0.00013761,2]
[360886702,1747103452150,-634.801,0.00013761,2]
[360886703,1747103452159,-500.0,0.00013773,2]
[360886704,1747103452168,-500.0,0.00013773,2]
[360886705,1747103452177,-500.0,0.00013773,2]
[360886706,1747103452187,-524.29936154,0.00013773,2]
[360886707,1747103452196,-500.0,0.00013773,2]
[360886708,1747103452205,-500.0,0.00013773,2]
[360886709,1747103452214,-500.0,0.00013773,2]
[360886710,1747103452224,-500.59663006,0.00013773,2]
[360886711,1747103452233,-165.04582177,0.00013773,2]
[360886712,1747103452243,-310.57964211,0.00013773,2]
[360886713,1747103452252,-500.0,0.00013773,2]
[360886714,1747103452262,-1000.0,0.00013782,2]
[360886715,1747103452272,-370.096433,0.00013793,2]
[360886716,1747103452282,-3354.028395,0.00013793,2]
[360886717,1747103452291,-252.45896658,0.00013793,2]
[360886718,1747103452300,-2193.63,0.00013793,2]
[360886719,1747103452310,-400.0,0.00013793,2]
[360886720,1747103452320,-205.9997089,0.00013793,2]
[360886721,1747103452441,-194.0002911,0.00013793,2]
[360886722,1747103452451,-400.0,0.00013793,2]
[360886723,1747103452460,-400.0,0.00013793,2]
[360886724,1747103452470,-5.9997089,0.00013793,2]
[360886725,1747103452505,-394.0002911,0.00013793,2]
[360886726,1747103452517,-598.31,0.00013793,2]
[360886727,1747103452528,-400.0,0.00013793,2]
[360886728,1747103452537,-400.0,0.00013793,2]
[360886729,1747103452547,-712.88,0.00013793,2]
[360886730,1747103452557,-400.0,0.00013793,2]
[360886731,1747103452566,-400.0,0.00013793,2]
[360886732,1747103452576,-400.0,0.00013793,2]
[360886733,1747103452585,-151.77108959,0.00013793,2]
[360886734,1747103452595,-400.0,0.00013793,2]
[360886735,1747103452605,-400.0,0.00013793,2]
[360886736,1747103452615,-400.0,0.00013793,2]
[360886737,1747103452625,-400.0,0.00013793,2]
[360886738,1747103452637,-640.04,0.00013793,2]
[360886739,1747103452647,-371.51573239,0.00013793,2]
[360886740,1747103452656,-400.0,0.00013793,2]
[360886741,1747103452666,-400.0,0.00013793,2]
[360886742,1747103452677,-408.34,0.00013793,2]
[360886743,1747103452687,-1823.31,0.00013793,2]
[360886744,1747103452696,-400.0,0.00013793,2]
[360886745,1747103452706,-512.71900514,0.00013793,2]
[360886746,1747103453020,-151.0,0.00013739,2]
[360886747,1747103453031,-826.78099486,0.00013793,2]
[360886748,1747103453041,-531.26,0.00013793,2]
[360886749,1747103453051,-52.09886514,0.00013793,2]
[360886750,1747103453063,-680.42113486,0.00013793,2]
[360886751,1747103453074,-400.0,0.00013793,2]
[360886752,1747103453084,-731.59,0.00013793,2]
[360886753,1747103453093,-400.0,0.00013793,2]
[360886754,1747103453103,-213.57886513,0.00013793,2]
[360886755,1747103453116,-980.96113487,0.00013793,2]
[360886756,1747103453125,-400.0,0.00013793,2]
[360886757,1747103453138,-400.0,0.00013793,2]
[360886758,1747103453147,-369.77787819,0.00013793,2]
[360886759,1747103453156,-400.0,0.00013793,2]
[360886760,1747103453166,-754.5,0.00013793,2]
[360886761,1747103453177,-437.46429477,0.00013793,2]
[360886762,1747103453187,-418.44732652,0.00013793,2]
[360886763,1747103453196,-400.0,0.00013793,2]
[360886764,1747103453206,-213.72049526,0.00013793,2]
[360886765,1747103453218,-262.63409656,0.00013793,2]
[360886766,1747103453227,-400.0,0.00013793,2]
[360886767,1747103453236,-921.32,0.00013793,2]
[360886768,1747103453246,-400.0,0.00013793,2]
[360886769,1747103453255,-400.0,0.00013793,2]
[360886770,1747103453265,-526.6,0.00013793,2]
[360886771,1747103453275,-400.0,0.00013793,2]
[360886772,1747103453284,-414.49491921,0.00013793,2]
[360886773,1747103453295,-284.4148659,0.00013793,2]
[360886774,1747103453305,-264.7045125,0.00013793,2]
[360886775,1747103453316,-393.31094011,0.00013793,2]
[360886776,1747103453326,-327.63453269,0.00013793,2]
[360886777,1747103453336,-400.0,0.00013793,2]
[360886778,1747103453346,-400.0,0.00013793,2]
[360886779,1747103453355,-412.64871122,0.00013793,2]
[360886780,1747103453368,-564.50128878,0.00013793,2]
[360886781,1747103453378,-263.08079145,0.00013794,2]
[360886782,1747103453393,-394.72448889,0.00013794,2]
[360886783,1747103453412,-5.27551111,0.00013794,2]
[360886784,1747103453421,-274.46865967,0.00013794,2]
[360886785,1747103453433,-125.53134033,0.00013794,2]
[360886786,1747103453446,-400.0,0.00013794,2]
[360886787,1747103453455,-460.09,0.00013794,2]
[360886788,1747103453466,-400.0,0.00013794,2]
[360886789,1747103453476,-400.0,0.00013794,2]
[360886790,1747103453488,-63.47865968,0.00013794,2]
[360886791,1747103453515,-336.52134032,0.00013794,2]
[360886792,1747103453526,-400.0,0.00013794,2]
[360886793,1747103453536,-400.0,0.00013794,2]
[360886794,1747103453546,-400.0,0.00013794,2]
[360886795,1747103453556,-400.0,0.00013794,2]
[360886796,1747103453565,-400.0,0.00013794,2]
[360886797,1747103453574,-400.0,0.00013794,2]
[360886798,1747103453584,-400.0,0.00013794,2]
[360886799,1747103453594,-400.0,0.00013794,2]
[360886800,1747103453604,-400.0,0.00013794,2]
[360886801,1747103453614,-400.0,0.00013794,2]
[360886802,1747103453624,-400.0,0.00013794,2]
[360886803,1747103453636,-400.0,0.00013794,2]
[360886804,1747103453646,-400.0,0.00013794,2]
[360886805,1747103453656,-400.0,0.00013794,2]
[360886806,1747103453665,-370.20584156,0.00013794,2]
[360886807,1747103453675,-400.0,0.00013794,2]
[360886808,1747103453685,-400.0,0.00013794,2]
[360886809,1747103453695,-400.0,0.00013794,2]
[360886810,1747103453705,-400.0,0.00013794,2]
[360886811,1747103453715,-268.48323794,0.00013794,2]
[360886812,1747103453725,-400.0,0.00013794,2]
[360886813,1747103453735,-400.0,0.00013794,2]
[360886814,1747103453922,-400.0,0.00013794,2]
[360886815,1747103453934,-400.0,0.00013794,2]
[360886816,1747103453946,-400.0,0.00013794,2]
[360886817,1747103453956,-480.58832128,0.00013794,2]
[360886818,1747103453965,-301.5920589,0.00013794,2]
[360886819,1747103950943,286.01,0.00010743,2]
[360886820,1747104193259,1307.0,0.00028,120]
[360886844,1747104631471,-437.4,0.00012185,2]
[360886845,1747104631483,-200.0,0.00012193,2]
[360886846,1747104631494,-483.32009883,0.00012202,2]
[360886847,1747104631506,-16.67990117,0.00012202,2]
[360886848,1747104631517,-320.19036937,0.00012202,2]
[360886849,1747104631528,-200.0,0.00012204,2]
[360886850,1747104631538,-200.0,0.00012208,2]
[360886851,1747104631548,-895.64232787,0.00012224,2]
[360886852,1747104631558,-267.5,0.00012414,2]
[360886853,1747104631569,-1200.0,0.00012469,2]
[360886854,1747104631579,-300.0,0.00012469,2]
[360886855,1747104631588,-300.0,0.00012469,2]
[360886856,1747104631598,-173.45444184,0.0001247,2]
[360886857,1747104631732,-935.77630819,0.0001247,2]
[360886858,1747104631744,-7091.14924997,0.0001247,2]
[360886859,1747104631754,-174.63,0.00012542,2]
[360886860,1747104631765,-1000.0,0.00012576,2]
[360886861,1747104631774,-219.95,0.00012719,2]
[360886862,1747104631784,-250.0,0.00012747,2]
[360886863,1747104631794,-169.58,0.00012777,2]
[360886864,1747104631803,-759.69075003,0.00012791,2]
[360886898,1747104637537,-577.85050015,0.00012791,2]
[360886899,1747104637549,-632.84795186,0.00012791,2]
[360886900,1747104637560,-295.44769259,0.00012791,2]
[360886901,1747104637571,-832.56310537,0.00012791,2]
[360886902,1747104637581,-180.54,0.0001284,2]
[360886903,1747104637590,-286.01,0.00013007,2]
[360886904,1747104637599,-207.4,0.00013058,2]
[360886905,1747104637608,-201.45,0.00013378,2]
[360886906,1747104637618,-1156.61,0.00013378,2]
[360886907,1747104637628,-447.89,0.00013378,2]
[360886908,1747104637637,-165.29,0.00013378,2]
[360886909,1747104637647,-358.5,0.00013378,2]
[360886910,1747104637658,-300.0,0.00013378,2]
[360886911,1747104637667,-150.12,0.00013378,2]
[360886912,1747104637679,-459.91,0.00013378,2]
[360886913,1747104637688,-150.0,0.00013378,2]
[360886914,1747104637698,-200.0,0.00013403,2]
[360886915,1747104637708,-200.0,0.00013403,2]
[360886916,1747104637718,-483.99782048,0.00013621,2]
[360886917,1747104637728,-150.0,0.00013637,2]
[360886918,1747104637737,-7204.72142431,0.00013638,2]
[360886920,1747104637747,-322.55667595,0.00013638,2]
[360886922,1747104637756,-420.0,0.00013682,2]
[360886923,1747104637766,-305.17965619,0.00013683,2]
[360886924,1747104637776,-693.75232364,0.00013683,2]
[360886925,1747104637787,-3382.47519701,0.0001369,2]
[360886926,1747104637797,-3422.2122,0.00013691,2]
[360886927,1747104637806,-163.98170208,0.00013691,2]
[360886928,1747104637816,-151.0,0.00013699,2]
[360886929,1747104637830,-224.34,0.00013699,2]
[360886930,1747104637840,-500.0,0.00013699,2]
[360886931,1747104637849,-500.0,0.00013699,2]
[360886932,1747104637859,-500.0,0.00013699,2]
[360886934,1747104637869,-500.0,0.00013699,2]
[360886935,1747104637878,-500.0,0.00013699,2]
[360886937,1747104637888,-500.0,0.00013699,2]
[360886939,1747104637897,-551.78438305,0.00013699,2]
[360886940,1747104637907,-500.0,0.00013699,2]
[360886941,1747104637917,-500.0,0.00013699,2]
[360886942,1747104637927,-150.0,0.00013699,2]
[360886943,1747104637937,-500.0,0.00013699,2]
[360886944,1747104637946,-500.0,0.00013699,2]
[360886945,1747104637956,-600.00023936,0.00013699,2]
[360886946,1747104637967,-1680.0,0.00013716,2]
[360886947,1747104637977,-366.0000059,0.00013725,2]
[360886948,1747104637988,-162.26,0.00013728,2]
[360886949,1747104637998,-162.26,0.00013728,2]
[360886950,1747104638008,-1185.25,0.00013728,2]
[360886951,1747104638019,-7204.72142424,0.00013735,2]
[360886952,1747104638029,-400.0,0.00013737,2]
[360886953,1747104638039,-400.0,0.00013737,2]
[360886954,1747104638048,-400.0,0.00013737,2]
[360886955,1747104638057,-150.648152,0.00013737,2]
[360886956,1747104638067,-158.612757,0.00013737,2]
[360886957,1747104638077,-933.694489,0.00013737,2]
[360886958,1747104638086,-400.0,0.00013737,2]
[360886959,1747104638096,-400.0,0.00013737,2]
[360886960,1747104638107,-400.0,0.00013737,2]
[360886961,1747104638124,-400.0,0.00013737,2]
[360886962,1747104638135,-400.0,0.00013737,2]
[360886963,1747104638144,-171.10215747,0.00013737,2]
[360886964,1747104638153,-400.0,0.00013737,2]
[360886965,1747104638163,-400.0,0.00013737,2]
[360886966,1747104638174,-400.0,0.00013737,2]
[360886967,1747104638183,-400.0,0.00013737,2]
[360886968,1747104638193,-500.0,0.00013737,2]
[360886969,1747104638203,-400.0,0.00013737,2]
[360886970,1747104638212,-400.0,0.00013737,2]
[360886971,1747104638221,-738.93,0.00013737,2]
[360886972,1747104638230,-250.0,0.00013737,2]
[360886973,1747104638240,-400.0,0.00013737,2]
[360886974,1747104638249,-482.72,0.00013737,2]
[360886975,1747104638258,-1019.39,0.00013737,2]
[360886976,1747104638267,-400.0,0.00013737,2]
[360886977,1747104638277,-2106.56,0.00013737,2]
[360886978,1747104638286,-794.47,0.00013737,2]
[360886979,1747104638295,-400.0,0.00013737,2]
[360886980,1747104638304,-400.0,0.00013737,2]
[360886981,1747104638314,-400.0,0.00013737,2]
[360886982,1747104638324,-400.0,0.00013737,2]
[360886983,1747104638340,-400.0,0.00013737,2]
[360886984,1747104638362,-400.0,0.00013737,2]
[360886985,1747104638372,-400.0,0.00013737,2]
[360886986,1747104638381,-736.81,0.00013737,2]
[360886987,1747104638391,-400.0,0.00013737,2]
[360886988,1747104638400,-400.0,0.00013737,2]
[360886989,1747104638410,-1650.16,0.00013737,2]
[360886990,1747104638419,-400.0,0.00013737,2]
[360886991,1747104638431,-829.78,0.00013737,2]
[360886992,1747104638440,-400.0,0.00013737,2]
[360886993,1747104638449,-693.35,0.00013737,2]
[360886994,1747104638458,-400.0,0.00013737,2]
[360886995,1747104638467,-400.0,0.00013737,2]
[360886996,1747104638477,-484.58,0.00013737,2]
[360886997,1747104638486,-503.21,0.00013737,2]
[360886998,1747104638495,-722.05,0.00013737,2]
[360886999,1747104638505,-400.0,0.00013737,2]
[360887000,1747104638514,-1574.1,0.00013737,2]
[360887001,1747104638523,-690.77,0.00013737,2]
[360887002,1747104638532,-400.0,0.00013737,2]
[360887003,1747104638541,-400.0,0.00013737,2]
[360887004,1747104638550,-400.0,0.00013737,2]
[360887005,1747104638559,-400.0,0.00013737,2]
[360887006,1747104638569,-400.0,0.00013737,2]
[360887007,1747104638578,-824.74,0.00013737,2]
[360887008,1747104638587,-927.58,0.00013737,2]
[360887009,1747104638597,-400.0,0.00013737,2]
[360887010,1747104638606,-929.18,0.00013737,2]
[360887011,1747104638616,-400.0,0.00013737,2]
[360887012,1747104638625,-400.0,0.00013737,2]
[360887013,1747104638634,-400.0,0.00013737,2]
[360887014,1747104638645,-455.97000198,0.00013737,2]
[360887015,1747104638655,-400.0,0.00013737,2]
[360887016,1747104638666,-406.16968731,0.00013737,2]
[360887017,1747104638676,-955.68,0.00013737,2]
[360887018,1747104638685,-402.59594909,0.00013737,2]
[360887019,1747104638695,-400.0,0.00013737,2]
[360887020,1747104638704,-550.76,0.00013737,2]
[360887021,1747104638713,-3342.69,0.00013737,2]
[360887022,1747104638724,-400.0,0.00013737,2]
[360887023,1747104638733,-400.0,0.00013737,2]
[360887024,1747104638743,-1311.21,0.00013737,2]
[360887025,1747104638756,-698.22,0.00013737,2]
[360887026,1747104638766,-400.0,0.00013737,2]
[360887027,1747104638775,-346.38813261,0.00013737,2]
[360887028,1747104638784,-324.52470692,0.00013737,2]
[360887029,1747104638794,-400.0,0.00013737,2]
[360887030,1747104638804,-789.47,0.00013737,2]
[360887031,1747104638814,-1115.97,0.00013737,2]
[360887032,1747104638828,-400.0,0.00013737,2]
[360887033,1747104638837,-418.69380868,0.00013737,2]
[360887034,1747104638846,-400.0,0.00013737,2]
[360887035,1747104638856,-273.13079164,0.00013737,2]
[360887036,1747104638878,-133.01371681,0.00013737,2]
[360887037,1747104638888,-401.5352641,0.00013737,2]
[360887038,1747104638900,-400.0,0.00013737,2]
[360887039,1747104638911,-410.49672551,0.00013737,2]
[360887040,1747104638920,-670.63,0.00013737,2]
[360887041,1747104638930,-400.0,0.00013737,2]
[360887042,1747104638940,-2517.02,0.00013737,2]
[360887043,1747104638950,-400.0,0.00013737,2]
[360887044,1747104638960,-884.56,0.00013737,2]
[360887045,1747104638970,-486.98,0.00013737,2]
[360887046,1747104638980,-1249.17,0.00013737,2]
[360887047,1747104638989,-400.0,0.00013737,2]
[360887048,1747104638999,-145.39072471,0.00013737,2]
[360887055,1747104639785,-249.38511584,0.00013737,2]
[360887056,1747104639796,-797.82,0.00013737,2]
[360887057,1747104639806,-400.0,0.00013737,2]
[360887058,1747104639816,-400.0,0.00013737,2]
[360887059,1747104639828,-701.85377652,0.00013737,2]
[360887074,1747104642951,-228.05622348,0.00013737,2]
[360887075,1747104642962,-480.28,0.00013737,2]
[360887076,1747104642972,-400.0,0.00013737,2]
[360887077,1747104642982,-1489.91,0.00013737,2]
[360887078,1747104642992,-400.0,0.00013738,2]
[360887079,1747104643002,-400.0,0.00013738,2]
[360887080,1747104643013,-400.0,0.00013738,2]
[360887081,1747104643023,-197.35364603,0.00013738,2]
[360887082,1747104643033,-400.0,0.00013738,2]
[360887083,1747104643043,-150.39260353,0.00013738,2]
[360887084,1747104643054,-401.04136541,0.00013738,2]
[360887085,1747104643063,-400.0,0.00013738,2]
[360887086,1747104643074,-400.0,0.00013738,2]
[360887087,1747104643084,-400.0,0.00013738,2]
[360887088,1747104643094,-400.0,0.00013738,2]
[360887089,1747104643104,-579.43,0.00013738,2]
[360887090,1747104643114,-456.57284782,0.00013738,2]
[360887091,1747104643123,-400.0,0.00013738,2]
[360887092,1747104643133,-400.86017758,0.00013738,2]
[360887093,1747104643143,-218.06979309,0.00013738,2]
[360887094,1747104643152,-400.0,0.00013738,2]
[360887095,1747104643162,-501.35815358,0.00013738,2]
[360887096,1747104643172,-400.0,0.00013738,2]
[360887097,1747104643185,-400.0,0.00013738,2]
[360887098,1747104643195,-400.0,0.00013738,2]
[360887099,1747104643204,-169.92296267,0.00013738,2]
[360887100,1747104643214,-459.21,0.00013738,2]
[360887101,1747104643223,-196.80010674,0.00013738,2]
[360887102,1747104643233,-400.0,0.00013738,2]
[360887103,1747104643243,-400.0,0.00013738,2]
[360887104,1747104643252,-400.0,0.00013738,2]
[360887105,1747104643262,-400.0,0.00013738,2]
[360887106,1747104643271,-400.0,0.00013738,2]
[360887107,1747104643281,-414.94315242,0.00013738,2]
[360887108,1747104643290,-400.0,0.00013738,2]
[360887109,1747104643300,-425.1,0.00013738,2]
[360887110,1747104643310,-400.0,0.00013738,2]
[360887111,1747104643321,-438.41,0.00013738,2]
[360887112,1747104643332,-400.0,0.00013738,2]
[360887113,1747104643342,-400.0,0.00013738,2]
[360887114,1747104643351,-537.24,0.00013738,2]
[360887115,1747104643360,-400.0,0.00013738,2]
[360887116,1747104643370,-400.0,0.00013738,2]
[360887117,1747104643380,-517.29,0.00013738,2]
[360887118,1747104643389,-400.0,0.00013738,2]
[360887119,1747104643399,-232.47618092,0.00013738,2]
[360887120,1747104643409,-450.74541387,0.00013738,2]
[360887121,1747104643418,-400.0,0.00013738,2]
[360887122,1747104643430,-400.0,0.00013738,2]
[360887123,1747104643439,-400.0,0.00013738,2]
[360887124,1747104643450,-400.0,0.00013738,2]
[360887125,1747104643459,-400.0,0.00013738,2]
[360887126,1747104643469,-400.0,0.00013738,2]
[360887127,1747104643479,-432.77844697,0.00013738,2]
[360887128,1747104643488,-400.0,0.00013738,2]
[360887129,1747104643498,-400.0,0.00013738,2]
[360887130,1747104643507,-400.0,0.00013738,2]
[360887131,1747104643517,-400.0,0.00013738,2]
[360887132,1747104643528,-400.0,0.00013738,2]
[360887133,1747104643538,-400.0,0.00013738,2]
[360887134,1747104643548,-400.0,0.00013738,2]
[360887135,1747104643558,-400.0,0.00013738,2]
[360887136,1747104643568,-400.0,0.00013738,2]
[360887137,1747104643578,-400.0,0.00013738,2]
[360887138,1747104643587,-248.44529351,0.00013738,2]
[360887139,1747104643597,-400.0,0.00013738,2]
[360887140,1747104643606,-400.0,0.00013738,2]
[360887141,1747104643617,-400.0,0.00013738,2]
[360887142,1747104643626,-400.0,0.00013738,2]
[360887143,1747104643636,-400.0,0.00013738,2]
[360887144,1747104643645,-400.0,0.00013738,2]
[360887145,1747104643655,-400.0,0.00013738,2]
[360887146,1747104643664,-581.94,0.00013738,2]
[360887147,1747104643674,-400.0,0.00013738,2]
[360887148,1747104643688,-400.0,0.00013738,2]
[360887149,1747104643698,-400.0,0.00013738,2]
[360887150,1747104643708,-400.0,0.00013738,2]
[360887151,1747104643718,-400.0,0.00013738,2]
[360887153,1747104643728,-511.66,0.00013738,2]
[360887155,1747104643737,-400.0,0.00013738,2]
[360887157,1747104643748,-400.0,0.00013738,2]
[360887159,1747104643757,-400.0,0.00013738,2]
[360887161,1747104643767,-400.0,0.00013738,2]
[360887163,1747104643776,-400.0,0.00013738,2]
[360887165,1747104643786,-400.0,0.00013738,2]
[360887168,1747104643797,-400.0,0.00013738,2]
[360887170,1747104643807,-400.0,0.00013738,2]
[360887171,1747104643817,-400.0,0.00013738,2]
[360887172,1747104643830,-400.0,0.00013738,2]
[360887173,1747104643839,-400.0,0.00013738,2]
[360887174,1747104643849,-400.0,0.00013738,2]